[Event "44th Chess Olympiad Women 2022"]
[Site "Chennai"]
[Date "2022.07.29"]
[Round "1.20"]
[White "Obondo, Cynthia Awino"]
[Black "Ciolacu, Alessia-Mihaela"]
[Result "1-0"]
[WhiteElo "1439"]
[BlackElo "2163"]
[Annotator "RC"]
[PlyCount "147"]
[EventDate "2022.??.??"]
[TimeControl "60"]

1. d4 {[%emt 0:00:13]} Nf6 {[%emt 0:00:08]} 2. Nf3 {[%emt 0:00:11]} b6 {
[%emt 0:00:14]} 3. e3 {[%emt 0:00:56]} Bb7 {[%emt 0:00:22]} 4. Bd3 {[%emt 0:00:
00]} g6 {[%emt 0:00:40]} 5. Nbd2 {[%emt 0:00:27]} c5 {[%emt 0:01:46]} 6. b3 {
[%emt 0:00:41]} Bg7 {[%emt 0:01:17]} 7. Bb2 {[%emt 0:00:19]} O-O {[%emt 0:00:
00]} 8. O-O {[%emt 0:00:48]} Nc6 {[%emt 0:04:36]} 9. a3 {[%emt 0:01:42]} Nh5 {
[%emt 0:00:26]} 10. Re1 {[%emt 0:04:49]} d5 {[%emt 0:09:48]} 11. g3 {[%emt 0:
00:00]} e6 {[%emt 0:09:52]} 12. Bf1 {[%emt 0:02:00]} Rc8 {[%emt 0:02:20]} 13.
c4 {[%emt 0:04:52]} cxd4 {[%emt 0:10:38]} 14. exd4 {[%emt 0:01:50]} Nf6 {
[%emt 0:01:33]} 15. Bg2 {[%emt 0:01:39]} dxc4 {[%emt 0:11:43]} 16. Nxc4 {
[%emt 0:01:34]} Na5 {[%emt 0:03:31]} 17. Nxa5 {[%emt 0:01:55]} bxa5 {[%emt 0:
00:00]} 18. Rc1 {[%emt 0:02:24]} Qb6 {[%emt 0:01:37]} 19. Qd3 {[%emt 0:06:25]}
Ba6 {[%emt 0:02:14]} 20. Qd1 {[%emt 0:03:49]} Rxc1 {[%emt 0:04:14]} 21. Bxc1 {
[%emt 0:00:47]} Nd5 {[%emt 0:02:08]} 22. Bb2 {[%emt 0:03:56]} Rb8 {[%emt 0:00:
00]} 23. Nd2 {[%emt 0:18:44]} Bxd4 {[%emt 0:00:57]} 24. Bxd4 {[%emt 0:01:42]}
Qxd4 {[%emt 0:00:08]} 25. Bxd5 {[%emt 0:04:11]} Qxd5 {[%emt 0:00:50]} 26. Qc2 {
[%emt 0:01:40]} e5 {[%emt 0:14:54]} 27. Qc3 {[%emt 0:08:23]} Rc8 {[%emt 0:00:
00]} 28. Qb2 {[%emt 0:04:36]} Bb7 {[%emt 0:01:15]} 29. Ne4 {[%emt 0:01:57]} Kg7
{[%emt 0:02:26]} 30. f3 {[%emt 0:00:23]} f5 {[%emt 0:06:24]} 31. Nd2 {[%emt 0:
00:00]} Re8 {[%emt 0:01:13]} 32. Kg2 {[%emt 0:00:13]} Kg8 {[%emt 0:00:56]} 33.
Qc3 {[%emt 0:00:33]} e4 {[%emt 0:02:26]} 34. fxe4 {[%emt 0:00:04]} fxe4 {
[%emt 0:00:12]} 35. Qe3 {[%emt 0:00:49]} Rd8 {[%emt 0:00:36]} 36. Re2 {[%emt 0:
00:00]} Rf8 {[%emt 0:00:50]} 37. Rf2 {[%emt 0:00:11]} Rd8 {[%emt 0:00:19]} 38.
Nc4 {[%emt 0:00:23]} Qd3 {[%emt 0:00:29]} 39. Rd2 {[%emt 0:00:39]} Qxd2+ {
[%emt 0:00:38]} 40. Nxd2 {[%emt 0:00:31]} Rxd2+ {[%emt 0:00:34]} 41. Kh3 {
[%emt 0:33:24]} Bc8+ {[%emt 0:30:29]} 42. Kh4 {[%emt 0:00:02]} Rd5 {[%emt 0:00:
00]} 43. g4 {[%emt 0:00:00]} Bb7 {[%emt 0:00:00]} 44. Qxa7 {[%emt 0:00:00]} Rd7
{[%emt 0:00:00]} 45. Qb8+ {[%emt 0:00:00]} Kf7 {[%emt 0:00:00]} 46. Qh8 {
[%emt 0:00:00]} Ke6 {[%emt 0:00:00]} 47. Qe8+ {[%emt 0:00:00]} Re7 {[%emt 0:00:
00]} 48. Qb5 {[%emt 0:00:00]} e3 {[%emt 0:00:00]} 49. Qe2 {[%emt 0:00:00]} Kd7
{[%emt 0:00:00]} 50. Kg3 {[%emt 0:00:00]} Re5 {[%emt 0:00:00]} 51. h4 {[%emt 0:
00:00]} Bc6 {[%emt 0:00:00]} 52. a4 {[%emt 0:00:00]} h6 {[%emt 0:00:00]} 53.
Kf4 {[%emt 0:00:00]} Re4+ {[%emt 0:00:00]} 54. Kg3 {[%emt 0:00:00]} Kd6 {
[%emt 0:00:00]} 55. Qd3+ {[%emt 0:00:00]} Kc7 {[%emt 0:00:00]} 56. Qe2 {
[%emt 0:00:00]} Kb6 {[%emt 0:00:00]} 57. Kh2 {[%emt 0:00:00]} g5 {[%emt 0:00:
00]} 58. hxg5 {[%emt 0:00:00]} hxg5 {[%emt 0:00:08]} 59. Kg1 {[%emt 0:00:31]}
Re5 {[%emt 0:02:08]} 60. Kf1 {[%emt 0:01:34]} Bb7 {[%emt 0:00:11]} 61. Ke1 {
[%emt 0:00:18]} Ba6 {[%emt 0:00:29]} 62. Qd1 {[%emt 0:01:02]} Re6 {[%emt 0:00:
00]} 63. Qd5 {[%emt 0:00:31]} Bc8 {[%emt 0:00:47]} 64. Qxg5 {[%emt 0:01:04]} e2
{[%emt 0:02:08]} 65. Qb5+ {[%emt 0:00:48]} Kc7 {[%emt 0:00:04]} 66. Qxa5+ {
[%emt 0:00:42]} Kd7 {[%emt 0:00:43]} 67. g5 {[%emt 0:01:00]} Ba6 {[%emt 0:00:
00]} 68. b4 {[%emt 0:01:00]} Bc4 {[%emt 0:01:55]} 69. Qa7+ {[%emt 0:00:24]} Ke8
{[%emt 0:00:13]} 70. Qc5 {[%emt 0:00:42]} Bb3 {[%emt 0:00:55]} 71. a5 {[%emt 0:
00:00]} Bd1 {[%emt 0:00:50]} 72. b5 {[%emt 0:00:19]} Re7 {[%emt 0:00:14]} 73.
g6 {[%emt 0:00:28]} Re6 {[%emt 0:01:05]} 74. g7 {[%emt 0:00:35]} 1-0

[Event "44th Chess Olympiad Women 2022"]
[Site "Chennai"]
[Date "2022.07.29"]
[Round "1.20"]
[White "Sandu, Mihaela"]
[Black "Mongeli, Sasha"]
[Result "1-0"]
[WhiteElo "2297"]
[BlackElo "1672"]
[Annotator "ChessBase"]
[PlyCount "77"]
[EventDate "2022.??.??"]
[TimeControl "60"]

1. e4 {[%emt 0:00:05]} c6 {[%emt 0:00:13]} 2. d4 {[%emt 0:00:18]} d5 {[%emt 0:
00:00]} 3. e5 {[%emt 0:01:29]} Bf5 {[%emt 0:00:26]} 4. Nf3 {[%emt 0:00:13]} e6
{[%emt 0:00:38]} 5. Be2 {[%emt 0:00:10]} Nd7 {[%emt 0:01:01]} 6. O-O {[%emt 0:
00:00]} Ne7 {[%emt 0:01:30]} 7. Nbd2 {[%emt 0:00:55]} c5 {[%emt 0:06:59]} 8. c4
{[%emt 0:00:53]} Bg4 {[%emt 0:03:56]} 9. h3 {[%emt 0:04:47]} Bh5 {[%emt 0:00:
00]} 10. dxc5 {[%emt 0:03:00]} Nxc5 {[%emt 0:05:20]} 11. b4 {[%emt 0:03:59]}
Bxf3 {[%emt 0:11:06]} 12. Nxf3 {[%emt 0:01:47]} Nd7 {[%emt 0:05:22]} 13. Bg5 {
[%emt 0:09:09]} dxc4 {[%emt 0:03:24]} 14. Bxc4 {[%emt 0:02:02]} Qb6 {[%emt 0:
00:00]} 15. Qe2 {[%emt 0:06:04]} Nc6 {[%emt 0:05:15]} 16. a3 {[%emt 0:02:04]}
Be7 {[%emt 0:05:54]} 17. Bxe7 {[%emt 0:05:06]} Nxe7 {[%emt 0:02:26]} 18. Rfd1 {
[%emt 0:04:32]} Rd8 {[%emt 0:01:53]} 19. Rd6 {[%emt 0:03:41]} Qc7 {[%emt 0:00:
00]} 20. Rad1 {[%emt 0:12:21]} Nc8 {[%emt 0:09:13]} 21. Ng5 {[%emt 0:05:53]}
O-O {[%emt 0:18:17]} 22. Nxe6 {[%emt 0:02:33]} fxe6 {[%emt 0:01:47]} 23. Bxe6+
{[%emt 0:00:06]} Kh8 {[%emt 0:00:05]} 24. Rxd7 {[%emt 0:00:14]} Rxd7 {[%emt 0:
00:00]} 25. Rxd7 {[%emt 0:03:19]} Qc1+ {[%emt 0:01:42]} 26. Rd1 {[%emt 0:06:16]
} Qxa3 {[%emt 0:00:54]} 27. Bxc8 {[%emt 0:00:40]} Rxc8 {[%emt 0:00:17]} 28. Qc4
{[%emt 0:01:23]} Rf8 {[%emt 0:02:59]} 29. e6 {[%emt 0:01:22]} Qb2 {[%emt 0:00:
00]} 30. Qf4 {[%emt 0:00:53]} Kg8 {[%emt 0:01:40]} 31. e7 {[%emt 0:06:19]} Rxf4
{[%emt 0:04:47]} 32. Rd8+ {[%emt 0:00:07]} Kf7 {[%emt 0:00:15]} 33. e8=Q+ {
[%emt 0:00:06]} Kf6 {[%emt 0:00:12]} 34. Rd6+ {[%emt 0:00:04]} Kg5 {[%emt 0:00:
00]} 35. Qe7+ {[%emt 0:00:16]} Kh5 {[%emt 0:01:08]} 36. g4+ {[%emt 0:00:11]}
Rxg4+ {[%emt 0:00:35]} 37. hxg4+ {[%emt 0:00:05]} Kxg4 {[%emt 0:00:03]} 38.
Qe4+ {[%emt 0:00:12]} Kg5 {[%emt 0:00:37]} 39. Rd5+ {[%emt 0:00:10]} 1-0

[Event "44th Chess Olympiad Women 2022"]
[Site "Chennai"]
[Date "2022.07.29"]
[Round "1.21"]
[White "Toma, Katarzyna"]
[Black "Elfelo, Eklas"]
[Result "1-0"]
[WhiteElo "2303"]
[BlackElo "1562"]
[Annotator "TA"]
[PlyCount "83"]
[EventDate "2022.??.??"]
[TimeControl "60"]

{[%evp 9,82,50,51,53,67,64,58,55,64,57,112,55,137,131,132,81,94,106,446,434,
570,565,549,552,587,590,596,594,589,585,646,632,696,694,717,712,762,757,822,
839,828,813,908,901,893,868,951,941,1254,1205,1216,1131,1172,1142,1539,1400,
1582,1462,29985,12781,29986,29987,29989,5147,29987,29987,29988,29989,29998,
29992,29997,29998,29999,29998,29999]} 1. e4 {[%emt 0:00:04]} c5 {[%emt 0:00:04]
} 2. Nf3 {[%emt 0:00:06]} Nf6 {[%emt 0:00:11]} 3. e5 {[%emt 0:00:58]} Nd5 {
[%emt 0:00:45]} 4. Nc3 {[%emt 0:04:04]} e6 {[%emt 0:04:38]} 5. Nxd5 {[%emt 0:
00:00]} exd5 {[%emt 0:01:05]} 6. d4 {[%emt 0:00:06] B29: Sicilian: 2 Nf3 Nf6 
(Nimzowitsch Variation).} c4 {[%emt 0:04:26]} 7. g3 {[%emt 0:07:29]} d6 {
[%emt 0:05:23]} 8. Bg2 {[%emt 0:00:24] [#] White is slightly better.} Bg4 $146
{[%emt 0:01:42]} ({Predecessor:} 8... Be7 9. O-O O-O 10. Re1 Nc6 11. Bf4 dxe5
12. Nxe5 Nxe5 13. Rxe5 Be6 14. Qe2 Bf6 15. Rxe6 fxe6 16. Qxe6+ {½-½ (43)
Machado,T (1879)-Martins,B (2134) Luso 2018}) 9. h3 {[%emt 0:00:42]} Bh5 {
[%emt 0:09:28]} (9... Be6 $14) 10. Qe2 {[%emt 0:02:04]} (10. c3 $16) 10... Qe7
{[%emt 0:08:18] [#]} ({Black should play} 10... Be7 $1 $14) 11. O-O $1 $36 {
[%emt 0:13:20] Re1 is the strong threat. White is on the roll.} Nc6 {[%emt 0:
01:59]} 12. c3 {[%emt 0:04:57]} (12. Re1 $142) 12... dxe5 {[%emt 0:00:00]} 13.
dxe5 {[%emt 0:00:08]} Nxe5 $2 {[%emt 0:02:13] This move loses the game for
Black.} 14. Qxe5 $18 {[%emt 0:00:18]} Bxf3 {[%emt 0:04:21]} 15. Qxe7+ {[%emt 0:
00:08]} Bxe7 {[%emt 0:00:24]} 16. Bxf3 {[%emt 0:00:06][%cal Yg2f3,Yf3d5,Yd5c4,
Yc4b3]} O-O {[%emt 0:00:15]} 17. Bxd5 {[%emt 0:00:00]} Rab8 {[%emt 0:03:20]}
18. Bxc4 {[%emt 0:00:28]} b5 {[%emt 0:00:18]} 19. Bb3 {[%emt 0:00:16]} Bc5 {
[%emt 0:03:10]} 20. Bf4 {[%emt 0:00:25]} Rbd8 {[%emt 0:01:25]} 21. Rad1 {
[%emt 0:00:19][%cal Ya1d1,Yd1d5,Yd5c5]} a5 {[%emt 0:01:22]} 22. Bc7 {[%emt 0:
00:36][%csl Ya5,Yd8]} Ra8 {[%emt 0:02:20]} 23. Rd5 {[%emt 0:00:37]} a4 {
[%emt 0:01:27]} 24. Rxc5 {[%emt 0:00:07]} axb3 {[%emt 0:00:22]} 25. axb3 {
[%emt 0:00:05]} Ra2 {[%emt 0:00:39]} 26. Rxb5 {[%emt 0:00:11]} Rxb2 {[%emt 0:
00:15]} 27. c4 {[%emt 0:00:16][%cal Yc3c4,Yc4c5]} Re8 {[%emt 0:01:34]} 28. Rd1
{[%emt 0:00:15]} h6 {[%emt 0:00:18]} 29. Rd8 {[%emt 0:00:11]} Rxd8 {[%emt 0:00:
49]} 30. Bxd8 {[%emt 0:00:06] Endgame KRB-KR} Kf8 {[%emt 0:00:24]} 31. c5 {
[%emt 0:00:32]} Rc2 {[%emt 0:00:20]} 32. b4 {[%emt 0:00:14][%cal Yb3b4,Yb4b5]}
g5 {[%emt 0:00:00]} 33. Bf6 {[%emt 0:00:14][%cal Rb5b8] [#]} Ke8 {[%emt 0:01:
05]} 34. Rb7 {[%emt 0:00:23] White threatens Rc7 and mate.} Rc4 {[%emt 0:00:34]
} 35. Kg2 {[%emt 0:00:43]} Rc2 {[%emt 0:01:26]} 36. Be7 {[%emt 0:00:21]} (36.
Rc7 $142 Ra2 37. c6 Ra8 38. Re7+ Kf8 39. b5 Kg8 40. b6 Kh7 41. b7) 36... Rc4 {
[%emt 0:01:31]} 37. b5 {[%emt 0:00:09] White mates.} Re4 {[%emt 0:00:25]} 38.
Bd6 {[%emt 0:00:00]} Kd8 {[%emt 0:00:30]} 39. b6 {[%emt 0:00:20]} Rb4 {[%emt 0:
00:52]} 40. c6 {[%emt 0:00:21][%cal Rb7b8]} Kc8 {[%emt 0:00:11]} 41. Rxf7 {
[%emt 0:30:33][%cal Rf7f8]} Rxb6 {[%emt 0:30:13]} 42. Rf8# {[%emt 0:00:36]
Weighted Error Value: White=0.07 (flawless) /Black=0.74} 1-0

[Event "44th Chess Olympiad Women 2022"]
[Site "Chennai"]
[Date "2022.07.29"]
[Round "1.21"]
[White "Varney, Zoe"]
[Black "Elfelo, Khadija"]
[Result "1-0"]
[WhiteElo "2045"]
[BlackElo "1875"]
[Annotator "NA"]
[PlyCount "53"]
[EventDate "2022.??.??"]
[TimeControl "60"]

1. e4 {[%emt 0:00:04]} c5 {[%emt 0:00:11]} 2. Nf3 {[%emt 0:00:05]} d6 {[%emt 0:
00:00]} 3. d4 {[%emt 0:00:05]} cxd4 {[%emt 0:00:04]} 4. Nxd4 {[%emt 0:00:06]}
Nf6 {[%emt 0:00:14]} 5. Nc3 {[%emt 0:00:06]} a6 {[%emt 0:00:15]} 6. Be3 {
[%emt 0:00:06]} e5 {[%emt 0:00:35]} 7. Nb3 {[%emt 0:00:06]} Be7 {[%emt 0:00:11]
} 8. f3 {[%emt 0:00:09]} O-O {[%emt 0:01:08]} 9. Qd2 {[%emt 0:00:46]} Be6 {
[%emt 0:00:30]} 10. O-O-O {[%emt 0:02:03]} Nc6 {[%emt 0:00:47]} 11. g4 {
[%emt 0:11:31]} Rc8 {[%emt 0:09:01]} 12. g5 {[%emt 0:05:17]} Nh5 {[%emt 0:00:
00]} 13. Nd5 {[%emt 0:22:12]} Bxd5 {[%emt 0:07:08]} 14. exd5 {[%emt 0:00:09]}
Nb8 {[%emt 0:03:56]} 15. Bd3 {[%emt 0:13:18]} Nf4 {[%emt 0:06:15]} 16. Bxf4 {
[%emt 0:00:00]} exf4 {[%emt 0:00:07]} 17. h4 {[%emt 0:00:00]} Nd7 {[%emt 0:00:
00]} 18. Qxf4 {[%emt 0:06:05]} Ne5 {[%emt 0:02:35]} 19. Qd4 {[%emt 0:02:36]}
Nxf3 {[%emt 0:12:45]} 20. Qe4 {[%emt 0:04:25]} Nxg5 {[%emt 0:07:13]} 21. hxg5 {
[%emt 0:00:08]} Bxg5+ {[%emt 0:00:05]} 22. Kb1 {[%emt 0:00:14]} g6 {[%emt 0:00:
00]} 23. Qg4 {[%emt 0:11:58]} f5 {[%emt 0:03:20]} 24. Qh3 {[%emt 0:01:51]} h6 {
[%emt 0:00:42]} 25. Rdg1 {[%emt 0:02:04]} Kg7 {[%emt 0:08:14]} 26. Nd4 {
[%emt 0:00:19]} Qd7 {[%emt 0:02:14]} 27. Rxg5 {[%emt 0:01:24]} 1-0

[Event "44th Chess Olympiad Women 2022"]
[Site "Chennai"]
[Date "2022.07.29"]
[Round "1.22"]
[White "Adhikari, Kritisara"]
[Black "Hagarova, Zuzana"]
[Result "0-1"]
[WhiteElo "1552"]
[BlackElo "2293"]
[Annotator "ChessBase"]
[PlyCount "84"]
[EventDate "2022.??.??"]
[TimeControl "60"]

1. d4 {[%emt 0:00:10]} Nf6 {[%emt 0:00:07]} 2. Bf4 {[%emt 0:00:49]} g6 {
[%emt 0:00:18]} 3. e3 {[%emt 0:01:17]} Bg7 {[%emt 0:00:41]} 4. Nd2 {[%emt 0:00:
00]} d6 {[%emt 0:06:30]} 5. Ngf3 {[%emt 0:08:01]} O-O {[%emt 0:02:12]} 6. h3 {
[%emt 0:02:50]} Nc6 {[%emt 0:03:51]} 7. Be2 {[%emt 0:03:35]} Nd7 {[%emt 0:00:
00]} 8. Bh2 {[%emt 0:10:26]} e5 {[%emt 0:02:03]} 9. Nb3 {[%emt 0:01:35]} a5 {
[%emt 0:11:14]} 10. a4 {[%emt 0:01:00]} e4 {[%emt 0:04:03]} 11. Nfd2 {[%emt 0:
00:00]} Qe7 {[%emt 0:02:32]} 12. O-O {[%emt 0:04:09]} f5 {[%emt 0:04:15]} 13.
Bc4+ {[%emt 0:05:40]} Kh8 {[%emt 0:00:06]} 14. Nc1 {[%emt 0:01:00]} Nf6 {
[%emt 0:03:23]} 15. Re1 {[%emt 0:06:45]} Bd7 {[%emt 0:03:57]} 16. Ne2 {[%emt 0:
00:00]} Nd8 {[%emt 0:17:34]} 17. Nf4 {[%emt 0:01:19]} c6 {[%emt 0:07:56]} 18.
Bb3 {[%emt 0:04:58]} g5 {[%emt 0:03:32]} 19. Nh5 {[%emt 0:03:35]} Nxh5 {
[%emt 0:02:13]} 20. Qxh5 {[%emt 0:00:13]} Be8 {[%emt 0:01:20]} 21. Qe2 {
[%emt 0:00:39]} Bg6 {[%emt 0:01:14]} 22. Nc4 {[%emt 0:02:18]} Nf7 {[%emt 0:00:
00]} 23. Qd2 {[%emt 0:00:56]} Qd8 {[%emt 0:01:55]} 24. Qe2 {[%emt 0:01:37]} d5
{[%emt 0:08:08]} 25. Nd2 {[%emt 0:00:18]} Nh6 {[%emt 0:00:26]} 26. f4 {[%emt 0:
00:00]} exf3 {[%emt 0:03:07]} 27. Nxf3 {[%emt 0:01:18]} Nf7 {[%emt 0:00:16]}
28. Qd2 {[%emt 0:03:37]} g4 {[%emt 0:03:16]} 29. hxg4 {[%emt 0:00:20]} fxg4 {
[%emt 0:00:04]} 30. Ne5 {[%emt 0:01:43]} Nxe5 {[%emt 0:00:20]} 31. dxe5 {
[%emt 0:00:44]} Qh4 {[%emt 0:00:36]} 32. Bf4 {[%emt 0:01:12]} g3 {[%emt 0:00:
00]} 33. Bxg3 {[%emt 0:09:16]} Qxg3 {[%emt 0:00:19]} 34. Re2 {[%emt 0:01:22]}
Bxe5 {[%emt 0:00:19]} 35. Rf2 {[%emt 0:01:11]} Qh2+ {[%emt 0:00:27]} 36. Kf1 {
[%emt 0:00:08]} Qh1+ {[%emt 0:00:11]} 37. Ke2 {[%emt 0:00:18]} Rxf2+ {[%emt 0:
00:00]} 38. Kxf2 {[%emt 0:00:21]} Rf8+ {[%emt 0:00:06]} 39. Ke2 {[%emt 0:00:18]
} Qxg2+ {[%emt 0:00:08]} 40. Kd1 {[%emt 0:00:30]} Bh5+ {[%emt 0:00:46]} 41. Kc1
{[%emt 0:31:01]} Rf1+ {[%emt 0:30:19]} 42. Qd1 {[%emt 0:00:17]} Rxd1# {[%emt 0:
00:00]} 0-1

[Event "44th Chess Olympiad Women 2022"]
[Site "Chennai"]
[Date "2022.07.29"]
[Round "1.22"]
[White "Borosova, Zuzana"]
[Black "Kapali, Binita"]
[Result "1-0"]
[WhiteElo "2277"]
[BlackElo "1511"]
[Annotator "RC"]
[PlyCount "115"]
[EventDate "2022.??.??"]
[TimeControl "60"]

1. Nf3 {[%emt 0:00:09]} d5 {[%emt 0:00:48]} 2. g3 {[%emt 0:01:52]} Nf6 {
[%emt 0:00:45]} 3. Bg2 {[%emt 0:00:12]} Bg4 {[%emt 0:02:08]} 4. d3 {[%emt 0:00:
00]} Nc6 {[%emt 0:02:20]} 5. Nbd2 {[%emt 0:06:23]} e5 {[%emt 0:02:27]} 6. h3 {
[%emt 0:12:00]} Bf5 {[%emt 0:03:44]} 7. c3 {[%emt 0:11:42]} Be7 {[%emt 0:09:46]
} 8. Qc2 {[%emt 0:16:45]} e4 {[%emt 0:13:38]} 9. Nh4 {[%emt 0:08:45]} exd3 {
[%emt 0:10:57]} 10. exd3 {[%emt 0:00:15]} Be6 {[%emt 0:00:25]} 11. Nb3 {
[%emt 0:04:12]} O-O {[%emt 0:09:46]} 12. Be3 {[%emt 0:04:11]} Rb8 {[%emt 0:00:
00]} 13. O-O {[%emt 0:10:02]} a6 {[%emt 0:06:49]} 14. Kh2 {[%emt 0:02:32]} Nd7
{[%emt 0:02:22]} 15. Nf3 {[%emt 0:00:37]} Nde5 {[%emt 0:01:00]} 16. Nxe5 {
[%emt 0:00:13]} Nxe5 {[%emt 0:00:12]} 17. f4 {[%emt 0:00:37]} Nc6 {[%emt 0:00:
00]} 18. Rae1 {[%emt 0:01:09]} Qd7 {[%emt 0:05:34]} 19. Nc5 {[%emt 0:05:11]}
Bxc5 {[%emt 0:02:11]} 20. Bxc5 {[%emt 0:00:05]} Rfe8 {[%emt 0:00:19]} 21. Qf2 {
[%emt 0:01:26]} Bf5 {[%emt 0:01:38]} 22. Qf3 {[%emt 0:00:13]} Ne7 {[%emt 0:00:
00]} 23. g4 {[%emt 0:01:51]} Qb5 {[%emt 0:10:24]} 24. Bxe7 {[%emt 0:02:10]}
Bxd3 {[%emt 0:01:07]} 25. a4 {[%emt 0:01:33]} Qd7 {[%emt 0:03:59]} 26. Qxd3 {
[%emt 0:00:20]} Rxe7 {[%emt 0:00:16]} 27. Rxe7 {[%emt 0:01:19]} Qxe7 {[%emt 0:
00:00]} 28. Qxd5 {[%emt 0:00:09]} c6 {[%emt 0:00:21]} 29. Qe4 {[%emt 0:00:32]}
Qd7 {[%emt 0:00:44]} 30. Re1 {[%emt 0:00:14]} h6 {[%emt 0:00:46]} 31. Qd4 {
[%emt 0:01:16]} Qc7 {[%emt 0:00:47]} 32. Qe5 {[%emt 0:00:06]} Qd8 {[%emt 0:00:
00]} 33. Re2 {[%emt 0:00:35]} Rc8 {[%emt 0:00:58]} 34. Be4 {[%emt 0:00:24]} Qh4
{[%emt 0:01:29]} 35. Bf5 {[%emt 0:00:16]} Rf8 {[%emt 0:00:36]} 36. Qe7 {
[%emt 0:02:47]} Qxe7 {[%emt 0:00:54]} 37. Rxe7 {[%emt 0:00:05]} g6 {[%emt 0:00:
00]} 38. Be4 {[%emt 0:00:19]} f5 {[%emt 0:00:13]} 39. gxf5 {[%emt 0:00:11]}
gxf5 {[%emt 0:00:13]} 40. Bf3 {[%emt 0:01:36]} Rb8 {[%emt 0:00:26]} 41. a5 {
[%emt 0:30:36]} Kf8 {[%emt 0:30:19]} 42. Re5 {[%emt 0:00:04]} Kg7 {[%emt 0:00:
00]} 43. Rxf5 {[%emt 0:00:08]} Kg6 {[%emt 0:00:12]} 44. Re5 {[%emt 0:00:06]}
Kf6 {[%emt 0:00:12]} 45. Kg3 {[%emt 0:00:45]} Rd8 {[%emt 0:00:21]} 46. Kf2 {
[%emt 0:00:30]} Rd2+ {[%emt 0:00:12]} 47. Re2 {[%emt 0:00:05]} Rd6 {[%emt 0:00:
00]} 48. Be4 {[%emt 0:01:21]} Rd7 {[%emt 0:01:00]} 49. Bc2 {[%emt 0:00:53]} h5
{[%emt 0:00:14]} 50. h4 {[%emt 0:00:25]} Rg7 {[%emt 0:00:19]} 51. f5 {[%emt 0:
00:00]} Rg4 {[%emt 0:00:39]} 52. Re6+ {[%emt 0:00:06]} Kf7 {[%emt 0:00:27]} 53.
Re4 {[%emt 0:00:03]} Rg7 {[%emt 0:00:46]} 54. b4 {[%emt 0:00:19]} Kf6 {[%emt 0:
00:00]} 55. Re6+ {[%emt 0:00:11]} Kf7 {[%emt 0:00:09]} 56. Rh6 {[%emt 0:00:19]}
Rg4 {[%emt 0:00:18]} 57. Rxh5 {[%emt 0:00:15]} Rc4 {[%emt 0:00:09]} 58. Bb3 {
[%emt 0:00:04]} 1-0

[Event "44th Chess Olympiad Women 2022"]
[Site "Chennai"]
[Date "2022.07.29"]
[Round "1.22"]
[White "Neupane, Anisha"]
[Black "Mrvova, Alena"]
[Result "0-1"]
[WhiteElo "1488"]
[BlackElo "2165"]
[Annotator "RC"]
[PlyCount "90"]
[EventDate "2022.??.??"]
[TimeControl "60"]

1. e4 {[%emt 0:00:03]} c5 {[%emt 0:00:22]} 2. Nc3 {[%emt 0:00:52]} Nc6 {
[%emt 0:00:39]} 3. f4 {[%emt 0:01:03]} e6 {[%emt 0:01:05]} 4. Nf3 {[%emt 0:00:
00]} Nge7 {[%emt 0:01:32]} 5. d3 {[%emt 0:03:09]} d5 {[%emt 0:01:43]} 6. g3 {
[%emt 0:03:25]} d4 {[%emt 0:04:03]} 7. Ne2 {[%emt 0:04:14]} g6 {[%emt 0:06:21]}
8. Bg2 {[%emt 0:09:26]} Bg7 {[%emt 0:00:40]} 9. O-O {[%emt 0:02:04]} O-O {
[%emt 0:00:27]} 10. c3 {[%emt 0:06:35]} Qb6 {[%emt 0:14:06]} 11. Qc2 {[%emt 0:
00:00]} Bd7 {[%emt 0:06:38]} 12. Kh1 {[%emt 0:02:59]} Rac8 {[%emt 0:01:14]} 13.
Bd2 {[%emt 0:04:27]} Rfd8 {[%emt 0:01:47]} 14. Rad1 {[%emt 0:03:17]} e5 {
[%emt 0:08:20]} 15. h3 {[%emt 0:09:26]} Be6 {[%emt 0:08:48]} 16. Nc1 {[%emt 0:
00:00]} c4 {[%emt 0:06:30]} 17. Ng5 {[%emt 0:10:17]} cxd3 {[%emt 0:00:25]} 18.
Qb1 {[%emt 0:05:38]} Bc4 {[%emt 0:01:27]} 19. cxd4 {[%emt 0:07:47]} Nxd4 {
[%emt 0:01:44]} 20. Be3 {[%emt 0:01:41]} exf4 {[%emt 0:06:20]} 21. gxf4 {
[%emt 0:01:05]} d2 {[%emt 0:00:25]} 22. Nd3 {[%emt 0:01:16]} h6 {[%emt 0:00:33]
} 23. Nf3 {[%emt 0:00:40]} Bxd3 {[%emt 0:00:10]} 24. Qxd3 {[%emt 0:00:39]} Nxf3
{[%emt 0:00:15]} 25. Qe2 {[%emt 0:01:26]} Nd4 {[%emt 0:00:07]} 26. Qf2 {
[%emt 0:00:47]} Qa5 {[%emt 0:03:28]} 27. Rxd2 {[%emt 0:00:50]} Ndc6 {[%emt 0:
00:00]} 28. Rfd1 {[%emt 0:00:49]} Qxa2 {[%emt 0:01:58]} 29. e5 {[%emt 0:00:37]}
Rxd2 {[%emt 0:00:10]} 30. Rxd2 {[%emt 0:00:13]} Qb1+ {[%emt 0:02:22]} 31. Kh2 {
[%emt 0:00:17]} Qf5 {[%emt 0:00:20]} 32. Qe1 {[%emt 0:01:05]} g5 {[%emt 0:00:
00]} 33. Rf2 {[%emt 0:00:30]} Ng6 {[%emt 0:00:58]} 34. fxg5 {[%emt 0:00:50]}
Qxe5+ {[%emt 0:00:15]} 35. Kg1 {[%emt 0:00:09]} hxg5 {[%emt 0:00:11]} 36. Qd2 {
[%emt 0:00:14]} Rd8 {[%emt 0:00:48]} 37. Qc1 {[%emt 0:00:19]} Nf4 {[%emt 0:00:
00]} 38. Bf1 {[%emt 0:00:29]} Nd3 {[%emt 0:00:22]} 39. Bxd3 {[%emt 0:00:11]}
Rxd3 {[%emt 0:00:36]} 40. Bxg5 {[%emt 0:00:44]} Qd5 {[%emt 0:01:27]} 41. Kh2 {
[%emt 0:31:01]} Rd1 {[%emt 0:31:53]} 42. Qe3 {[%emt 0:00:42]} Be5+ {[%emt 0:00:
00]} 43. Bf4 {[%emt 0:00:27]} Rh1+ {[%emt 0:00:07]} 44. Kg3 {[%emt 0:00:08]}
Rg1+ {[%emt 0:00:06]} 45. Kh2 {[%emt 0:00:40]} Qh1# {[%emt 0:00:08]} 0-1